bitfinex/quotes_ETHUSD_20240926
["timestamp","ask_amount","ask_price","bid_price","bid_amount"]
[1727355107385,0.8102759,2638.4,2637.6,7.8397123]
[1727355107569,4.6005559,2638.4,2638.3,0.06235083]
[1727355107742,4.6005559,2638.4,2637.7,3.79111]
[1727355107743,3.79053,2638.2,2637.7,3.79111]
[1727355107946,3.79053,2638.2,2637.7,4.549345]
[1727355108147,3.79053,2638.2,2637.7,0.758235]
[1727355108378,4.56604,2638.0,2637.6,3.79132]
[1727355108583,3.79047,2638.2,2637.7,3.79117]
[1727355109090,3.79047,2638.2,2637.6,7.8397923]
[1727355109091,3.79069,2638.1,2637.6,7.8397923]
[1727355109248,3.79069,2638.1,2637.6,12.41501153]
[1727355109444,3.79069,2638.1,2637.7,3.79116]
[1727355110083,3.79078,2638.0,2637.6,4.57521923]
[1727355110747,3.79055,2638.2,2637.7,0.45752192]
[1727355110996,7.56552,2638.3,2637.8,7.58198]
[1727355111186,7.56552,2638.3,2637.8,7.65771973]
[1727355111363,7.56552,2638.3,2637.8,3.79095]
[1727355111748,3.79046,2638.2,2637.8,3.79095]
[1727355112389,3.79046,2638.2,2637.7,4.24868192]
[1727355112614,3.79082,2638.0,2637.6,0.07581084]
[1727355112799,3.79082,2638.0,2637.6,3.79132]
[1727355113210,3.0,2638.3,2637.8,3.79101]
[1727355113211,6.79031,2638.3,2637.8,3.79101]
[1727355113395,3.79069,2638.1,2637.6,7.8396923]
[1727355113604,3.79069,2638.1,2637.6,4.96192974]
[1727355114217,3.79069,2638.1,2637.6,4.96191974]
[1727355114616,3.79048,2638.2,2637.7,3.79112]
[1727355114801,3.79048,2638.2,2637.7,4.66642397]
[1727355115997,3.7904,2638.3,2637.9,3.79083]
[1727355116225,3.7904,2638.3,2638.0,0.76575509]
[1727355117406,0.0381759,2638.4,2638.0,0.76575509]
[1727355117622,3.79035,2638.3,2638.0,0.76575509]
[1727355118333,0.0381759,2638.4,2638.0,4.55639509]
[1727355118632,0.0381759,2638.4,2638.1,3.79046]
[1727355118818,0.0381759,2638.4,2638.2,0.45562151]
[1727355119394,3.8284259,2638.4,2638.2,0.45562151]
[1727355119597,3.8284259,2638.4,2638.0,0.76575509]
[1727355120145,3.8284259,2638.4,2638.1,0.06278511]
[1727355120304,3.79036,2638.3,2638.1,0.06278511]
[1727355120708,3.8284259,2638.4,2638.1,0.06278511]
[1727355120909,3.8284259,2638.4,2638.1,0.82721562]
[1727355121142,3.8284259,2638.4,2638.2,0.06269118]
[1727355123207,0.0381759,2638.4,2638.2,0.06269118]
[1727355123448,0.0381759,2638.4,2638.3,7.8387823]
[1727355123621,0.0381759,2638.4,2638.3,7.90137956]
[1727355123821,0.0381759,2638.4,2638.3,8.70536638]
[1727355127531,0.0381759,2638.4,2638.3,11.70536638]
[1727355127856,0.0381759,2638.4,2638.3,12.25536638]
[1727355128554,0.0381759,2638.4,2638.3,11.70536638]
[1727355133336,0.0381759,2638.4,2638.3,8.70536638]
[1727355133645,0.0381759,2638.4,2638.3,4.65689408]
[1727355133863,0.0381759,2638.4,2638.3,8.70536638]
[1727355134376,0.0381759,2638.4,2638.3,4.65689408]
[1727355134548,0.0381759,2638.4,2638.3,4.73268633]
[1727355135296,0.0381759,2638.4,2638.3,3.85290726]
[1727355137759,0.0381759,2638.4,2638.3,7.97716762]
[1727355137977,0.0381759,2638.4,2638.3,7.90137956]
[1727355138401,0.0381759,2638.4,2638.3,3.85290726]
[1727355139561,0.0381759,2638.4,2638.3,7.90137956]
[1727355139882,0.0381759,2638.4,2638.3,9.07055152]
[1727355141502,0.0381759,2638.4,2638.3,5.02207922]
[1727355142731,0.0381759,2638.4,2638.3,9.14634136]
[1727355142893,0.0381759,2638.4,2638.3,9.07055152]
[1727355143090,0.75554845,2639.0,2638.7,3.7897]
[1727355143291,0.75554845,2639.0,2638.8,3.78959]
[1727355143612,0.75554845,2639.0,2638.8,3.84895848]
[1727355144739,0.0381759,2639.2,2639.0,3.78925]
[1727355144887,0.0381759,2639.2,2639.1,0.757869]
[1727355145092,0.0381759,2639.2,2639.1,0.05919462]
[1727355145494,0.0381759,2639.2,2639.1,3.78917]
[1727355145720,0.0381759,2639.2,2639.1,3.84835435]
[1727355145924,0.0381759,2639.2,2639.1,0.05918435]
[1727355146149,0.0381759,2639.2,2639.1,0.82295378]
[1727355146437,0.0381759,2639.2,2639.1,4.61212378]
[1727355146739,0.0381759,2639.2,2639.1,0.82295378]
[1727355147093,0.0381759,2639.2,2639.1,0.05918435]
[1727355147589,0.0381759,2639.2,2639.1,3.84835435]
[1727355149875,0.0381759,2639.2,2639.1,0.05918435]
[1727355150192,0.8641759,2639.2,2639.1,0.05918435]
[1727355150399,0.8641759,2639.2,2638.4,4.0484723]
[1727355150400,0.8641759,2639.2,2638.5,3.79002]
[1727355150639,4.6532959,2639.2,2638.6,3.78979]
[1727355150932,3.7894,2639.0,2638.5,3.79002]
[1727355151131,3.7894,2639.0,2638.5,7.958952]
[1727355151439,3.78919,2639.1,2638.6,3.78981]
[1727355151598,3.78919,2639.1,2638.6,3.86559414]
[1727355151800,3.78919,2639.1,2638.7,3.78974]
[1727355152324,0.8641759,2639.2,2638.8,3.78958]
[1727355152531,3.78918,2639.1,2638.7,3.78974]
[1727355152849,4.6532059,2639.2,2638.7,3.78967]
[1727355153029,4.6532059,2639.2,2638.8,3.78959]
[1727355154454,0.8641759,2639.2,2638.8,3.78959]
[1727355155118,3.78917,2639.1,2638.7,3.78971]
[1727355155311,4.6532059,2639.2,2638.7,3.86545143]
[1727355155511,0.8641759,2639.2,2638.8,0.07578384]
[1727355155756,0.0381759,2639.2,2639.0,7.8377023]
[1727355156252,0.0381759,2639.2,2639.0,7.57847]
[1727355156423,0.0381759,2639.2,2639.1,4.547017]
[1727355156618,0.0381759,2639.2,2639.1,0.8336158]
[1727355156811,0.0381759,2639.2,2639.1,4.547017]
[1727355157006,0.0381759,2639.2,2638.7,3.78965]
[1727355157234,0.8227,2639.1,2638.8,0.07577906]
[1727355157458,0.8227,2639.1,2638.7,7.57926]
[1727355157665,0.8227,2639.1,2638.7,7.65504041]
[1727355157867,0.8227,2639.1,2638.8,4.95992127]
[1727355159335,0.8227,2639.1,2638.9,3.78942]
[1727355161984,0.8227,2639.1,2638.8,4.95992127]
[1727355162187,0.8227,2639.1,2638.9,3.78945]
[1727355163044,0.8227,2639.1,2638.9,3.78935]
[1727355163244,0.8227,2639.1,2638.9,4.67185919]
[1727355163955,0.8227,2639.1,2638.9,0.88250919]
[1727355164279,0.8227,2639.1,2638.8,3.86536059]
[1727355164575,0.8227,2639.1,2638.9,3.78944]
[1727355164979,0.8227,2639.1,2639.0,0.05872413]
[1727355166341,0.0381759,2639.2,2639.0,0.05872413]
[1727355167886,0.0381759,2639.2,2639.0,4.24039246]
[1727355168045,0.0381759,2639.2,2639.0,4.3161674]
[1727355168556,0.0381759,2639.2,2639.1,3.78917]
[1727355168867,0.0381759,2639.2,2639.1,3.92180113]
[1727355171658,0.0381759,2639.2,2639.1,3.84603224]
[1727355171858,0.0381759,2639.2,2639.1,5.05364953]
[1727355174762,0.0381759,2639.2,2639.1,5.12941913]
[1727355174962,0.0381759,2639.2,2639.1,5.05364953]
[1727355175793,0.0381759,2639.2,2639.1,1.26447953]
[1727355176104,0.0381759,2639.2,2639.1,0.05686224]
[1727355176250,4.5913959,2639.2,2639.1,0.05686224]
[1727355176553,0.8023759,2639.2,2639.1,0.05682634]
[1727355177054,0.8023759,2639.2,2638.9,3.78934]
[1727355177254,0.8023759,2639.2,2639.1,0.05682634]
[1727355177505,0.8023759,2639.2,2639.0,0.0569202]
[1727355177802,0.8023759,2639.2,2639.1,0.05682634]
[1727355178101,0.8023759,2639.2,2638.9,4.95964921]
[1727355178285,0.8023759,2639.2,2639.1,0.05682634]
[1727355178286,4.5913959,2639.2,2639.1,0.05682634]
[1727355178489,3.78917,2639.1,2639.0,0.0569202]
[1727355178706,0.8023759,2639.2,2638.6,3.78975]
[1727355178707,4.5913959,2639.2,2638.8,3.78953]
[1727355179206,4.5913959,2639.2,2638.8,7.57907]
[1727355179396,4.5913959,2639.2,2638.8,3.78953]
[1727355179574,8.3805259,2639.2,2638.8,3.78953]
[1727355179784,4.5913959,2639.2,2638.8,3.78953]
[1727355180016,4.5913959,2639.2,2638.9,0.05701408]
[1727355180543,3.78924,2639.1,2638.9,0.05701408]
[1727355180762,0.8198,2639.0,2638.6,3.78979]
[1727355181063,0.8198,2639.0,2638.6,7.5796]
[1727355181261,0.8198,2639.0,2638.7,3.78973]
[1727355181610,0.8198,2639.0,2638.8,3.78955]
[1727355182043,0.8198,2639.0,2638.7,3.78973]
[1727355182214,0.8198,2639.0,2638.7,3.78966]
[1727355182579,0.8198,2639.0,2638.2,0.78971274]
[1727355182580,3.78982,2638.7,2638.2,3.79038]
[1727355182704,3.78982,2638.7,2638.2,3.79044]
[1727355182705,0.807,2638.6,2638.2,3.79044]
[1727355183022,0.807,2638.6,2638.1,3.79052]
[1727355183023,4.59696,2638.6,2638.1,3.79052]
[1727355183743,3.78946,2638.9,2638.3,3.79021]
[1727355184056,0.8195,2638.8,2638.3,7.8386823]
[1727355184207,0.8195,2638.8,2638.4,3.7901]
[1727355184405,0.8195,2638.8,2638.4,3.865894]
[1727355184606,4.60911,2638.8,2638.3,4.57407823]
[1727355184842,0.8195,2638.5,2638.1,3.79049]
[1727355185462,0.8195,2638.5,2638.1,4.95346423]
[1727355185752,0.8195,2638.5,2638.3,3.79029]
[1727355187544,3.78939,2639.0,2638.5,3.78991]
[1727355187774,0.7738,2638.9,2638.5,9.08461984]
[1727355187973,0.7738,2638.9,2638.6,3.86565618]
[1727355188142,0.7738,2638.9,2638.6,3.78987]
[1727355188339,0.7738,2638.9,2638.7,3.7897]
[1727355188561,0.7738,2638.9,2638.7,4.96008283]
[1727355188735,0.7738,2638.9,2638.7,1.17038283]
[1727355189283,0.7738,2638.9,2638.6,3.78987]
[1727355193084,3.8273259,2639.2,2638.6,3.78987]
[1727355193085,0.0381759,2639.2,2638.9,3.78943]
[1727355193273,0.0381759,2639.2,2638.7,7.8382123]
[1727355193274,3.8273059,2639.2,2638.7,7.8382123]
[1727355193475,3.8273059,2639.2,2638.8,1.16280323]
[1727355194300,3.8273059,2639.2,2638.8,4.95238323]
[1727355194803,3.8273059,2639.2,2638.4,3.79008]
[1727355195122,3.78932,2639.0,2638.9,0.05767593]
[1727355195323,0.0381759,2639.2,2638.3,3.79024]
[1727355195324,0.7957,2638.7,2638.3,3.79024]
[1727355195589,0.7957,2638.7,2638.4,0.0579042]
[1727355195953,0.7957,2638.7,2638.4,4.68769786]
[1727355196157,0.7957,2638.7,2638.5,3.7899]
[1727355196355,0.7957,2638.7,2638.5,3.84771543]
[1727355198090,0.7957,2638.7,2638.5,7.63765543]
[1727355198295,0.7691,2638.9,2638.5,7.63765543]
[1727355198588,0.7691,2638.9,2638.5,3.84771543]
[1727355198796,0.7691,2638.9,2638.6,3.78982]
[1727355199021,0.7691,2638.9,2638.6,3.84754153]
[1727355199212,0.7691,2638.9,2638.7,3.78973]
[1727355199587,0.7691,2638.9,2638.8,0.05753375]
[1727355199783,0.776,2639.1,2638.8,3.84710375]
[1727355200184,0.776,2639.1,2638.8,4.61078713]
[1727355200921,0.776,2639.1,2638.8,4.68657013]
[1727355201485,0.776,2639.1,2638.8,4.61078713]
[1727355203535,0.776,2639.1,2638.8,0.82121713]
[1727355204109,0.776,2639.1,2638.8,0.05753375]
[1727355204533,0.776,2639.1,2638.7,3.78966]
[1727355204827,0.776,2639.1,2638.8,0.05577067]
[1727355204993,0.776,2639.1,2638.8,3.78959]
[1727355205322,0.776,2639.1,2638.9,0.05567679]
[1727355208497,0.776,2639.1,2638.7,3.78966]
[1727355208498,0.776,2639.1,2639.0,0.05435884]
[1727355209650,4.56517,2639.1,2638.5,7.8383723]
[1727355209941,3.78939,2639.0,2638.6,3.78988]
[1727355210244,3.78939,2639.0,2638.6,3.84461437]
[1727355210397,3.78939,2639.0,2638.6,5.0074396]
[1727355212246,4.56518,2639.1,2638.6,5.08322633]
[1727355212435,4.56518,2639.1,2638.7,4.70285986]
[1727355212630,0.776,2639.1,2638.7,4.83328701]
[1727355213039,4.56517,2639.1,2638.7,4.83328701]
[1727355213222,4.56517,2639.1,2638.7,4.75750034]
[1727355213418,4.56517,2639.1,2638.7,4.83328566]
[1727355214222,4.56517,2639.1,2638.7,4.75750034]
[1727355214437,0.776,2639.1,2638.8,4.64421803]
[1727355214637,0.0381759,2639.2,2639.1,3.78917]
[1727355214843,0.0381759,2639.2,2639.0,3.7893]
[1727355215043,0.0381759,2639.2,2639.1,0.05426497]
[1727355215427,0.0381759,2639.2,2638.9,3.78938]
[1727355215915,0.0381759,2639.2,2639.0,0.05435884]
[1727355216718,0.0381759,2639.2,2639.0,3.84363884]
[1727355217040,0.0381759,2639.2,2639.1,3.78917]
[1727355217364,0.0381759,2639.2,2639.1,5.09490952]
[1727355223791,0.0381759,2639.2,2639.1,5.0191409]
[1727355224071,0.0381759,2639.2,2639.1,5.09489852]
[1727355227699,0.0381759,2639.2,2639.1,5.0191409]
[1727355230352,0.0381759,2639.2,2639.1,3.84343497]
[1727355230591,0.0381759,2639.2,2639.1,0.05426497]
[1727355231297,0.0381759,2639.2,2639.1,3.84343497]
[1727355231510,0.0381759,2639.2,2639.1,3.91921036]
[1727355233106,0.0381759,2639.2,2639.1,0.13004036]
[1727355233299,0.0381759,2639.2,2639.1,0.05426497]
[1727355235300,0.0381759,2639.2,2639.1,3.84343497]
[1727355242043,0.0381759,2639.2,2639.1,6.28625419]
[1727355242202,0.0381759,2639.2,2639.1,6.36202459]
[1727355243849,0.0381759,2639.2,2639.1,6.36202075]
[1727355248791,6.46074879,2639.2,2639.1,0.05426497]
[1727355248986,4.5962959,2639.2,2639.1,0.05426497]
[1727355249293,0.7534,2638.9,2638.5,3.78998]
[1727355249636,3.7534,2639.1,2638.2,3.79035]
[1727355249873,0.7612,2638.7,2638.3,3.79019]
[1727355250039,0.7612,2638.7,2638.3,7.58042]
[1727355250235,0.7612,2638.7,2638.3,3.79019]
[1727355250639,0.7612,2638.7,2638.3,7.58042]
[1727355250874,0.7612,2638.7,2638.3,3.79019]
[1727355251555,0.7612,2638.7,2638.3,7.58043]
[1727355252472,0.7612,2638.7,2638.3,3.79019]
[1727355252668,0.7612,2638.7,2638.3,7.58041]
[1727355253060,0.7612,2638.7,2638.3,3.79019]
[1727355253265,0.7612,2638.7,2638.3,7.58042]
[1727355253576,0.7612,2638.7,2638.3,3.79019]
[1727355253886,0.7612,2638.7,2638.3,7.58042]
[1727355254085,0.7612,2638.7,2638.3,3.79019]
[1727355254583,1.216287,2638.7,2638.1,3.7905]
[1727355254773,0.7967,2638.3,2637.9,3.79079]
[1727355255079,0.7967,2638.3,2638.0,0.0460874]
[1727355255237,3.79042,2638.3,2638.0,0.0460874]
[1727355255475,3.79042,2638.3,2637.5,4.04184357]
[1727355255476,0.8061,2638.2,2637.7,3.79104]
[1727355255680,0.8061,2638.2,2638.1,0.04448787]
[1727355255919,0.8061,2638.2,2637.9,3.79089]
[1727355256088,0.8061,2638.2,2638.1,0.04448787]
[1727355256433,0.8061,2638.2,2638.1,0.0446818]
[1727355256595,0.8061,2638.2,2637.9,3.79089]
[1727355256793,0.8061,2638.2,2638.1,0.0446818]
[1727355257104,0.8061,2638.2,2637.9,3.79089]
[1727355257324,0.8061,2638.2,2638.1,0.04474306]
[1727355257489,4.59656,2638.2,2638.0,0.04483699]
[1727355257693,5.056216,2638.2,2637.7,3.79109]
[1727355257889,4.59656,2638.2,2638.1,0.04472774]
[1727355258212,0.8046,2638.1,2637.7,3.79116]
[1727355258391,0.8046,2638.1,2637.7,4.170216]
[1727355259500,0.8046,2638.1,2637.9,3.79089]
[1727355261994,0.8046,2638.1,2638.0,3.79075]
[1727355262598,3.79011,2638.5,2638.0,3.79075]
[1727355262599,0.7664,2638.5,2638.0,3.79075]
[1727355262819,0.7664,2638.5,2638.1,3.79055]
[1727355263105,0.7664,2638.5,2638.2,3.79046]
[1727355266102,0.7664,2638.5,2638.1,3.7906]
[1727355267138,0.7664,2638.5,2638.0,4.17730651]
[1727355267449,4.5565,2638.5,2638.0,4.17730651]
[1727355267603,4.5565,2638.5,2638.0,7.58129]
[1727355268003,4.5565,2638.5,2638.1,3.79059]
[1727355269005,0.8005,2638.4,2637.3,3.0]
[1727355269206,0.56560288,2639.0,2637.2,3.79181]
[1727355269207,3.79112,2637.8,2637.2,3.79181]
[1727355269445,0.8005,2637.6,2637.2,3.79181]
[1727355269653,0.8005,2637.6,2637.0,3.79213]
[1727355269820,4.5919,2637.6,2637.0,7.58422]
[1727355270021,0.8005,2637.6,2637.1,0.04198142]
[1727355270246,3.79149,2637.5,2637.1,0.04198142]
[1727355270608,0.8005,2637.6,2637.1,3.83401142]
[1727355271746,0.8005,2637.6,2636.5,3.79283]
[1727355271951,2.0,2638.3,2635.6,3.79411]
[1727355271952,6.79183,2637.3,2637.2,0.04048804]
[1727355272247,3.79195,2637.2,2636.6,3.79268]
[1727355272446,3.79195,2637.2,2636.6,4.551245]
[1727355273218,3.79205,2637.1,2636.6,0.758565]
[1727355273422,3.79205,2637.1,2636.4,7.6617463]
[1727355273627,3.79205,2637.1,2636.5,3.79285]
[1727355273941,3.79205,2637.1,2636.4,3.8687963]
[1727355273942,7.58418,2637.1,2636.4,3.8687963]
[1727355274363,3.79205,2637.1,2636.4,3.8687963]
[1727355274551,7.5842,2637.1,2636.5,0.79106399]
[1727355274735,3.79219,2637.0,2636.5,0.79106399]
[1727355275663,3.79219,2637.0,2636.5,4.58394399]
[1727355276740,3.79233,2636.9,2636.5,0.79106399]
[1727355276936,4.61513,2636.9,2636.5,0.79106399]
[1727355277283,4.61513,2636.9,2636.5,4.58396399]
[1727355278250,3.79181,2637.3,2636.7,7.83432357]
[1727355278547,0.8064,2637.4,2637.1,4.04184357]
[1727355278779,0.8064,2637.4,2637.0,3.79209]
[1727355279479,0.8064,2637.4,2637.1,0.04776385]
[1727355280376,4.59803,2637.4,2637.1,0.04776385]
[1727355280566,0.8064,2637.4,2637.1,0.04776385]
[1727355280762,0.8064,2637.4,2637.0,3.79217]
[1727355281064,0.8064,2637.4,2637.1,0.04776385]
[1727355281941,3.0,2637.9,2637.1,0.04776385]
[1727355281942,3.79137,2637.6,2637.1,7.88151742]
[1727355282251,3.79137,2637.6,2637.1,3.83967385]
[1727355284567,3.79137,2637.6,2637.1,7.63163385]
[1727355285280,3.79137,2637.6,2637.2,3.79186]
[1727355285577,3.79121,2637.7,2637.2,3.84017576]
[1727355287491,3.79133,2637.6,2637.2,3.84017576]
[1727355287796,3.79133,2637.6,2637.2,0.04831576]
[1727355288474,3.79113,2637.8,2637.2,4.72005711]
[1727355288475,3.79118,2637.7,2637.2,4.72005711]
[1727355288848,3.79118,2637.7,2637.2,4.72016711]
[1727355289266,3.79118,2637.7,2637.2,4.72009711]
[1727355289886,3.79118,2637.7,2637.3,3.79173]
[1727355290051,4.61771,2637.9,2637.3,4.31192998]
[1727355290252,0.8268,2637.9,2637.5,3.7914]
[1727355290454,3.7907,2638.1,2637.6,3.79122]
[1727355290455,4.5911,2638.1,2637.6,3.79122]
[1727355290794,3.79077,2638.0,2637.6,0.04805627]
[1727355291355,8.8409,2638.1,2637.6,3.83935627]
[1727355291551,4.59109,2638.1,2637.6,3.83935627]
[1727355292003,0.8004,2638.1,2637.7,3.79104]
[1727355292198,0.8004,2638.1,2637.8,3.79103]
[1727355292378,0.8004,2638.1,2637.8,3.83869196]
[1727355292580,3.0,2638.5,2637.8,3.83869196]
[1727355292581,3.79041,2638.3,2637.8,3.83869196]
[1727355292887,3.79031,2638.4,2638.0,3.79072]
[1727355292888,4.56391,2638.4,2638.0,3.79072]
[1727355293390,4.56391,2638.4,2638.1,0.04730967]
[1727355295056,8.35417,2638.4,2638.1,0.04730967]
[1727355295256,8.35417,2638.4,2637.9,3.79087]
[1727355295565,8.35417,2638.4,2638.2,0.04719226]
[1727355295770,9.257485,2638.4,2637.9,3.79087]
[1727355295956,4.56386,2638.4,2638.3,0.04707486]
[1727355296156,4.56386,2638.4,2637.9,3.79087]
[1727355296356,0.7736,2638.4,2637.9,3.79087]
[1727355296592,3.79032,2638.3,2638.0,0.04742709]
[1727355297314,4.56383,2638.4,2638.0,0.04742709]
[1727355297501,4.56383,2638.4,2637.9,3.79089]
[1727355297699,4.56383,2638.4,2638.1,0.04676134]
[1727355297897,4.56383,2638.4,2637.9,3.79089]
[1727355298197,4.56383,2638.4,2638.2,0.04664393]
[1727355298381,4.56383,2638.4,2638.0,3.79074]
[1727355298911,4.56383,2638.4,2638.1,0.04676134]
[1727355299086,4.56383,2638.4,2637.9,3.79087]
[1727355299285,4.56383,2638.4,2638.2,0.04664393]
[1727355299487,4.56383,2638.4,2637.9,3.79087]
[1727355299695,4.56383,2638.4,2638.3,0.04652652]
[1727355299872,5.399218,2638.4,2637.9,3.79087]
[1727355300067,4.56383,2638.4,2638.3,0.04652652]
[1727355300316,4.56389,2638.4,2637.7,3.79116]
[1727355300544,4.56389,2638.4,2637.4,4.04184357]
[1727355300545,4.56389,2638.4,2638.3,0.04652652]
[1727355300819,4.56389,2638.4,2637.8,3.79103]
[1727355300820,0.7736,2638.4,2637.8,3.79103]
[1727355301123,3.79034,2638.3,2637.9,0.04699619]
[1727355302510,3.79067,2638.1,2637.9,0.04699619]
[1727355302712,0.7763,2638.0,2637.5,3.79143]
[1727355302924,0.7763,2638.0,2637.1,4.04184357]
[1727355303135,0.7763,2638.0,2637.4,3.79149]
[1727355303136,4.56707,2638.0,2637.4,3.79149]
[1727355303420,3.79091,2637.9,2637.4,3.79149]
[1727355303577,7.58188,2637.9,2637.4,3.79149]
[1727355303920,7.58189,2637.9,2637.4,3.79149]
[1727355304078,3.79091,2637.9,2637.4,3.79149]
[1727355304291,3.79103,2637.8,2637.4,3.79149]
[1727355306290,4.56714,2638.0,2637.6,3.79122]
[1727355306291,0.7763,2638.0,2637.6,3.79122]
[1727355306493,3.79067,2638.1,2637.7,3.79114]
[1727355306692,3.79067,2638.1,2637.7,4.96116491]
[1727355306940,3.79067,2638.1,2637.7,3.79114]
[1727355307396,0.7661,2638.2,2637.8,3.79092]
[1727355307820,4.55663,2638.2,2637.8,3.79092]
[1727355308495,4.55658,2638.2,2637.8,3.79096]
[1727355309792,4.55656,2638.2,2637.6,3.79132]
[1727355310022,4.55656,2638.2,2637.8,3.79103]
[1727355310543,4.55656,2638.2,2637.7,0.78331636]
[1727355310838,3.79065,2638.1,2637.7,0.78331636]
[1727355311033,6.78989,2638.6,2637.4,4.54983]
[1727355311034,3.7911,2637.8,2637.4,3.7915]
[1727355312303,3.79125,2637.7,2637.3,3.79167]
[1727355312507,0.7932,2637.6,2637.2,7.83372357]
[1727355312726,0.7932,2637.6,2637.3,3.79173]
[1727355313406,0.7932,2637.6,2637.2,7.83363357]
[1727355313592,3.79082,2638.0,2637.2,4.04184357]
[1727355313796,4.939092,2637.9,2637.4,3.79151]
[1727355314059,4.939092,2637.9,2637.4,7.58302]
[1727355314223,4.939092,2637.9,2637.4,3.79151]
[1727355315115,1.148182,2637.9,2637.5,0.05472251]
[1727355315316,3.79105,2637.8,2637.5,0.05472251]
[1727355316207,4.6640552,2637.8,2637.5,0.05472251]
[1727355316910,4.939072,2637.9,2637.5,3.84618251]
[1727355317244,4.55999,2637.9,2637.5,3.84618251]
[1727355320827,4.51218185,2637.9,2637.5,3.84618251]
[1727355321028,0.72129185,2637.9,2637.5,3.84611251]
[1727355321359,0.72129185,2637.9,2637.6,6.2293898]
[1727355321652,0.72129185,2637.9,2637.5,0.05472251]
[1727355321813,4.51227185,2637.9,2637.7,0.05444061]
[1727355322316,4.51227185,2637.9,2637.8,0.05429967]
[1727355322652,0.72129185,2637.9,2637.6,5.65810868]
[1727355322954,3.80075,2638.0,2637.3,0.0575]
[1727355322955,0.01,2638.0,2637.8,5.71212835]
[1727355323167,0.01,2638.0,2637.8,5.65782868]
[1727355323323,0.01,2638.0,2637.9,0.05430393]
[1727355323516,0.01,2638.0,2637.7,3.84867]
[1727355323517,0.01,2638.0,2637.8,0.39031858]
[1727355323718,0.01,2638.0,2637.9,0.05430393]
[1727355323919,0.7695,2638.0,2637.9,0.05430393]
[1727355324120,4.56025,2638.0,2637.9,0.05430393]
[1727355324366,0.7695,2638.0,2637.5,3.84894]
[1727355324655,0.7695,2638.0,2637.5,4.42052587]
[1727355324656,3.79089,2637.9,2637.5,4.42052587]
[1727355325048,4.56025,2638.0,2637.6,3.7913]
[1727355325357,4.56025,2638.0,2637.6,4.79918846]
[1727355328764,4.56025,2638.0,2637.6,4.79914846]
[1727355329460,0.7695,2638.0,2637.6,8.59038846]
[1727355329829,0.7695,2638.0,2637.6,4.79912846]
[1727355330024,0.7695,2638.0,2637.7,0.06054899]
[1727355330359,0.01,2638.0,2637.7,4.33736184]
[1727355331248,0.01,2638.0,2637.7,4.27681285]
[1727355331479,0.01,2638.0,2637.8,0.0603924]
[1727355331686,0.01,2638.0,2637.7,4.27681285]
[1727355331884,0.01,2638.0,2637.9,0.06023581]
[1727355332086,0.01,2638.0,2637.7,3.79115]
[1727355332384,0.01,2638.0,2637.6,5.65802868]
[1727355332385,3.80075,2638.0,2637.9,0.06023581]
[1727355332563,4.56059,2637.9,2637.8,0.0603924]
[1727355332759,4.56059,2637.9,2637.5,3.79142]
[1727355332964,3.79109,2637.8,2637.4,3.79159]
[1727355333161,3.79125,2637.7,2637.3,3.84925]
[1727355333368,3.79156,2637.5,2637.0,3.84968]
[1727355333559,4.572,2637.6,2637.0,0.0575]
[1727355333754,5.1127184,2637.6,2637.0,0.0575]
[1727355333983,4.572,2637.6,2637.0,0.0575]
[1727355334558,4.572,2637.6,2637.0,1.92429868]
[1727355334857,8.36341,2637.6,2637.1,3.79204]
[1727355335060,3.79147,2637.5,2637.0,5.71645868]
[1727355336084,0.7806,2637.6,2637.2,1.86679868]
[1727355336283,0.7806,2637.6,2637.2,5.65858868]
[1727355336505,0.7806,2637.6,2637.3,3.79174]
[1727355336798,3.80084,2638.0,2637.4,5.65839868]
[1727355336799,0.787,2637.8,2637.4,5.65839868]
[1727355337292,0.787,2637.8,2637.4,1.86679868]
[1727355338919,4.57804,2637.8,2637.4,1.86679868]
[1727355339082,4.57804,2637.8,2637.3,3.79165]
[1727355339282,4.57804,2637.8,2637.3,4.550009]
[1727355340425,0.787,2637.8,2637.2,1.86679868]
[1727355340599,3.79119,2637.7,2637.2,5.65858868]
[1727355341123,3.79119,2637.7,2637.1,3.79193]
[1727355341124,0.8153,2637.6,2637.1,3.79193]
[1727355341299,4.60671,2637.6,2637.1,3.79193]
[1727355344179,4.60671,2637.6,2637.1,4.73702487]
[1727355344785,3.0,2637.9,2636.9,3.79221]
[1727355345102,3.79168,2637.4,2637.0,0.06160307]
[1727355346292,3.79168,2637.4,2637.0,1.92840175]
[1727355347090,0.8107,2637.3,2637.0,0.06160307]
[1727355347295,0.8107,2637.3,2636.5,3.8503]
[1727355347296,3.7922,2637.0,2636.5,3.7928]
[1727355347785,0.8107,2637.1,2636.6,3.79263]
[1727355348190,4.60276,2637.1,2636.6,4.73785287]
[1727355349088,0.8107,2637.1,2636.7,3.79261]
[1727355349289,0.8107,2637.1,2636.7,5.65933868]
[1727355351133,0.8107,2637.1,2636.7,9.45185868]
[1727355351287,4.58197,2637.4,2636.9,1.86679868]
[1727355351489,3.79182,2637.3,2636.9,1.86679868]
[1727355351927,4.58197,2637.4,2636.7,4.83223816]
[1727355351928,4.55141,2637.2,2636.7,4.83223816]
[1727355352224,4.55141,2637.2,2636.7,3.7925]
[1727355352521,4.55141,2637.2,2636.6,5.65942868]
[1727355353025,8.34343,2637.2,2636.7,3.79261]
[1727355353260,8.34343,2637.2,2636.1,0.78685079]
[1727355353261,0.794,2637.1,2636.1,0.78685079]
[1727355353458,3.79315,2636.4,2635.9,3.79366]
[1727355353782,3.79315,2636.4,2635.7,1.92429868]
[1727355353783,4.58727,2636.3,2635.8,3.79377]
[1727355354061,0.794,2636.3,2635.7,3.85153]
[1727355354371,3.79347,2636.2,2635.7,3.79399]
[1727355354850,7.58692,2636.2,2635.7,3.79399]
[1727355355036,3.79345,2636.2,2635.7,3.79399]
[1727355355364,0.794,2636.3,2635.7,3.79399]
[1727355355365,4.58719,2636.3,2635.7,3.79397]
[1727355355866,0.794,2636.3,2635.8,5.66063868]
[1727355356367,1.63203,2636.3,2635.4,0.0575]